Cogmind - Beta 16 @@@ ROGUE MODE // 2025.11.14 @ 08:24:18 Player: shapeshifter Result: Destroyed by CL-RTL(R) with Subdweller Laser Performance ------------- Evolutions (0) 0 Regions Visited (3) 600 Robots Destroyed (37) 185 Value Destroyed (949) 949 Prototype IDs (0) 0 Alien Tech Used (0) 0 Bonus (-15) -15 TOTAL SCORE: 1719 Bonus ------- Friendly Fire -15 Cogmind --------- Core Integrity 0/250 Matter 242/300 Energy 200/200 System Corruption 0% Temperature Cool (6) Movement Rolling (110) Location -10/Subcaves Parts ------- > --- POWER (1) -------- Subdweller Power Source > --- PROPULSION (2) --- Subdweller Monowheel > --- UTILITY (2) ------ (None) > --- WEAPON (2) ------- Subdweller Machine Gun Battle Cannon > --- INVENTORY (5) ---- Huge Storage Unit Seismic Detector Rocket Launcher Subdweller Shrapnel Launcher Peak State ------------ > --- POWER ------------ Subdweller Power Source > --- PROPULSION ------- Wheel Subdweller Monowheel > --- UTILITY ---------- Scrap Shield > --- WEAPON ----------- Particle Gun Subdweller Machine Gun > --- INVENTORY -------- Huge Storage Unit Seismic Detector Battle Cannon Rocket Launcher Subdweller Shrapnel Launcher [Rating: 13] Favorites ----------- Power Light Ion Engine Engine Light Ion Engine Propulsion Light Treads Treads Light Treads Wheel Wheel Utility Scrap Shield Device Seismic Detector Storage Large Storage Unit Protection Scrap Shield Weapon Light Assault Rifle Energy Gun EM Pulse Gun Ballistic Gun Light Assault Rifle Ballistic Cannon Battle Cannon Launcher Rocket Launcher Build | -11 -10 -10 -10 ------- Run | Yrd Mat Min Sub Slots Evolved . | . . . . Power . | . . . . Propulsion . | . . . . Utility . | . . . . Weapon . | . . . . Parts Attached 33 | 8 1 10 14 Power 8 | 1 . 3 4 Engine 8 | 1 . 3 4 Core . | . . . . Reactor . | . . . . Propulsion 6 | 2 . 2 2 Treads 2 | 2 . . . Leg . | . . . . Wheel 4 | . . 2 2 Hover . | . . . . Flight . | . . . . Utility 5 | 2 1 . 2 Device 2 | 1 . . 1 Storage 2 | 1 1 . . Processor . | . . . . Hackware . | . . . . Protection 1 | . . . 1 Artifact . | . . . . Weapon 14 | 3 . 5 6 Energy Gun 3 | 2 . . 1 Energy Cannon . | . . . . Ballistic Gun 8 | 1 . 4 3 Ballistic Cannon 1 | . . . 1 Launcher 2 | . . 1 1 Special Weapon . | . . . . Impact Weapon . | . . . . Slashing Weapon . | . . . . Piercing Weapon . | . . . . Special Melee Weapon . | . . . . Unidentified Prototypes . | . . . . Parts Lost 10 | . . 7 3 Power 2 | . . 2 . Propulsion 3 | . . 2 1 Utility 1 | . . . 1 Weapon 4 | . . 3 1 Highest Loss Streak 2 | . . 2 2 To Critical Strikes 1 | . . . 1 Average Backups 6 | 3 6 9 5 Power . | . 1 1 . Propulsion . | 1 2 1 . Utility 2 | . 2 3 2 Weapon 2 | 1 1 3 3 Tool/Special . | . . . . Unused Backups 5 | . . . 5 Power 1 | . . . 1 Propulsion . | . . . . Utility 3 | . . . 3 Weapon 1 | . . . 1 Tool/Special . | . . . . Average Slot Usage (%) 91 | . 100 98 84 Engine 13 | . 14 13 14 Treads 13 | . 28 21 2 Wheel 14 | . . 5 24 Device 6 | . 14 14 . Storage 6 | . 14 14 . Protection 6 | . . . 13 Energy Gun 11 | . 28 8 8 Ballistic Gun 15 | . . 18 19 Peak Build Rating 13 | 7 8 8 13 Average Rating 9 | 5 7 7 11 On Entrance 5 | . 7 8 8 Avg Prop Armor Cover (%) 3 | . . 13 3 Naked Turns . | . . . . Heaviest Build 31 | 13 28 27 31 Greatest Support 40 | 40 40 40 30 Greatest Overweight (x) 2 | . . 2 2 Average Overweight (x) . | . . . 1 Largest Inventory Capacity 15 | 8 15 15 15 Average Capacity 8 | 7 9 15 5 Most Carried 13 | 6 8 13 10 Average Carried 6 | 3 6 9 5 Final Capacity 15 | 8 15 15 5 Final Carried 10 | 5 8 10 4 Class Distribution -------------------- 57% | Mutant 39% | Subdweller-Mutant 3% | Scavenger-Mutant Dominant Class ---------------- Mutant | -10/Materials Mutant | -10/Mines Subdweller-Mutant | -10/Subcaves Resources | -11 -10 -10 -10 ----------- Run | Yrd Mat Min Sub Matter Collected 760 | 270 . 154 336 Remotely . | . . . . Salvage Created 1240 | 118 108 427 587 Parts 79 | 8 4 27 40 Haulers Intercepted . | . . . . Recyclers Shooed 1 | . 1 . . Parts Field Recycled . | . . . . Retrieved Matter . | . . . . Parts Self-Destructed 21 | . . . 21 Prevented . | . . . . Parts Restored . | . . . . Kills | -11 -10 -10 -10 ------- Run | Yrd Mat Min Sub Combat Hostiles Destroyed 32 | . 2 16 14 Guns 26 | . 1 12 13 Cannons 1 | . . . 1 AOE 5 | . 1 4 . Classes Destroyed 7 | 2 1 1 3 Tunneler 2 | 2 . . . Recycler 1 | 1 . . . Turret 2 | . . . 2 Swarmer 14 | . . 10 4 Grunt 8 | . 2 6 . Sentry 1 | . . . 1 Subdweller 9 | . . . 9 Best Kill Streak 5 | 3 2 5 2 Combat Bots Only 5 | . 2 5 2 Max Kills in Single Turn 2 | 1 1 2 2 Gunslinging 1 | . . . 1 Exploded 2 | . 1 2 . Melee . | . . . . Uniques/NPCs Destroyed . | . . . . Combat | -11 -10 -10 -10 -------- Run | Yrd Mat Min Sub Hostile Shots Fired 254 | . 7 112 135 Missed 72 | . . 33 39 Hits 182 | . 7 79 96 Projectile 182 | . 7 79 96 Critical Strikes 3 | . . 2 1 Damage Taken 2118 | 14 89 784 1231 Core 252 | . 30 146 76 Absorbed by Shields . | . . . . Core Remaining (%) 100 | 100 . . . Volleys Fired 208 | 8 6 59 135 Largest 2 | 2 2 2 2 Hottest 85 | 80 80 80 85 Shots Fired 362 | 16 12 110 224 Gun 357 | 16 12 108 221 Cannon 2 | . . . 2 Launcher 3 | . . 2 1 Special . | . . . . Kinetic 214 | . . 86 128 Thermal 95 | . . . 95 Explosive 3 | . . 2 1 Electromagnetic 50 | 16 12 22 . Robot Hit Streak 37 | 9 3 18 37 Robot Miss Streak 6 | 1 1 6 5 Penetration Max . | . . . . Secondary Targets 2 | . . . 2 Max Gunslinging Chain 1 | . . . 1 Shots Hit Robots 191 | 14 7 64 106 Core Hits 72 | 4 3 32 33 Critical Kills . | . . . . Critical Parts Destroyed . | . . . . Critical Strikes 3 | 1 . . 2 Burn 1 | . . . 1 Blast 1 | . . . 1 Corrupt 1 | 1 . . . Melee Attacks . | . . . . Impact . | . . . . Slashing . | . . . . Piercing . | . . . . Sneak Attacks . | . . . . Combat Hostiles . | . . . . Follow-up Attacks . | . . . . Damage Inflicted 2604 | 237 210 712 1445 Guns 2224 | 190 93 542 1399 Cannons 46 | . . . 46 Explosions 334 | 47 117 170 . Melee . | . . . . Ramming . | . . . . Kinetic 1209 | . . 361 848 Thermal 795 | 47 117 34 597 Explosive 136 | . . 136 . Electromagnetic 464 | 190 93 181 . Impact . | . . . . Slashing . | . . . . Piercing . | . . . . Highest Corruption . | . . . . Average Corruption . | . . . . Corruption Purged . | . . . . Corruption Blocked . | . . . . Overload Shots . | . . . . Overflow Damage . | . . . . Projectiles . | . . . . Explosions . | . . . . Melee . | . . . . Knockbacks . | . . . . Impact . | . . . . Kinetic . | . . . . Secondary . | . . . . Self-Inflicted Damage 15 | 15 . . . Shots 1 | 1 . . . Rammed . | . . . . Targets Rammed . | . . . . Kicked . | . . . . Crushed . | . . . . Highest Temperature 156 | 84 156 138 24 Average Temperature 30 | 34 83 41 5 Received Heat Transfer 660 | . 48 243 369 Siege Activations . | . . . . Martial Activations . | . . . . Shielding Activations . | . . . . Robots Disrupted . | . . . . Combat Hostiles . | . . . . Robots Corrupted . | . . . . Combat Hostiles . | . . . . Parts Fried 2 | 2 . . . Impact Corruptions . | . . . . Robots Melted . | . . . . Combat Hostiles . | . . . . Parts Melted 1 | . . . 1 Heat Transferred 1617 | 50 50 . 1517 Parts Sabotaged . | . . . . Parts Stolen . | . . . . Parts Stripped . | . . . . Power Chain Reactions 3 | 1 1 1 . Alert | -11 -10 -10 -10 ------- Run | Yrd Mat Min Sub Maximum Alert Level 1 | . . 1 . Low Security (%) 99 | 100 100 99 . Level 1 . | . . . . Level 2 . | . . . . Level 3 . | . . . . Level 4 . | . . . . Level 5 . | . . . . High Security . | . . . . Max Security . | . . . . Peak Influence 200 | 10 48 200 . Initial . | . . . . Average 33 | . 6 50 . Influence Increases 804 | 15 74 468 247 Destroy 0b10 Robot/C 500 | . 40 320 140 Destroy 0b10 Robot/NC 15 | 15 . . . Destroy Leader 70 | . 10 60 . Allied During Kill 2 | . . . 2 Successful Hack 6 | . 6 . . Destroy Structure 16 | . 3 13 . Lose Combat Pursuer 195 | . 15 75 105 Influence Decreases 804 | 15 74 292 423 Entered New Map 92 | . . . 92 Time Decay 642 | 15 74 252 301 Lost Part 50 | . . 40 10 Lost Ally 20 | . . . 20 Squads Dispatched . | . . . . Investigation . | . . . . Extermination . | . . . . Reinforcement . | . . . . Assault . | . . . . Garrison . | . . . . Intercept . | . . . . Searches Triggered . | . . . . Construction Impeded . | . . . . Haulers Reinforced . | . . . . Active Scanning Responses . | . . . . Cargo Convoy Interrupts . | . . . . Stealth | -11 -10 -10 -10 --------- Run | Yrd Mat Min Sub Distress Signals 1 | . 1 . . Communications Jammed . | . . . . Distress Signals . | . . . . Times Spotted 52 | . 3 23 26 Peak Tracking Total 4 | . 2 4 3 Tactical Retreats 8 | . 1 3 4 Traps | -11 -10 -10 -10 ------- Run | Yrd Mat Min Sub Traps Triggered . | . . . . Indirectly . | . . . . Trap Hack Attempts . | . . . . Triggered . | . . . . Disarmed . | . . . . Reprogrammed . | . . . . Reused . | . . . . Traps Extracted . | . . . . Installed . | . . . . Triggered . | . . . . Machines | -11 -10 -10 -10 ---------- Run | Yrd Mat Min Sub Machines Disabled 1 | . . . 1 Max in Single Turn 1 | . . . 1 Machines Repaired . | . . . . Machines Dismantled . | . . . . Machines Sabotaged . | . . . . Overloaded Fab Kills . | . . . . Hacking | -11 -10 -10 -10 --------- Run | Yrd Mat Min Sub Machines Accessed 4 | . 4 . . Terminals 4 | . 4 . . Fabricators . | . . . . Repair Stations . | . . . . Recycling Units . | . . . . Scanalyzers . | . . . . Garrison Access . | . . . . Total Hacks 10 | . 10 . . Successful 3 | . 3 . . Failed 7 | . 7 . . Catastrophic 1 | . 1 . . Database Lockouts . | . . . . Manual 10 | . 10 . . Terminals 10 | . 10 . . Fabricators . | . . . . Repair Stations . | . . . . Recycling Units . | . . . . Scanalyzers . | . . . . Garrison Access . | . . . . Terminal Hacks 1 | . 1 . . Zone Layout 1 | . 1 . . Fabricator Hacks . | . . . . Repair Station Hacks . | . . . . Recycling Unit Hacks . | . . . . Scanalyzer . | . . . . Garrison Access Hacks . | . . . . Unauthorized Hacks 2 | . 2 . . Terminals 2 | . 2 . . Skim 2 | . 2 . . Fabricators . | . . . . Repair Stations . | . . . . Recycling Units . | . . . . Scanalyzers . | . . . . Garrison Access . | . . . . Data Cores Recovered . | . . . . Used . | . . . . Hacking Detections 4 | . 4 . . Full Trace Events . | . . . . Feedback Events . | . . . . Feedback Blocked . | . . . . Robot Schematics Acquired . | . . . . Robots Built . | . . . . Authchips . | . . . . Time . | . . . . Total Robot Build Rating . | . . . . Part Schematics Acquired . | . . . . Parts Built . | . . . . Authchips . | . . . . Time . | . . . . Total Part Build Rating . | . . . . Part Studies Acquired . | . . . . Parts Repaired . | . . . . Time . | . . . . Parts Recycled . | . . . . Recycled Matter . | . . . . Retrieved Matter . | . . . . Retrieved Components . | . . . . Parts Scanalyzed . | . . . . Part Schematics Acquired . | . . . . Parts Damaged . | . . . . Bothacking | -11 -10 -10 -10 ------------ Run | Yrd Mat Min Sub Used RIF Installer . | . . . . Robots Hacked . | . . . . Non-combat . | . . . . Combat . | . . . . Robot Hacks Applied . | . . . . Relay Couplers Released . | . . . . Fabnet Peak Effective % . | . . . . Robots Rewired . | . . . . Allies Hacked . | . . . . Hacks Repelled . | . . . . Allies | -11 -10 -10 -10 -------- Run | Yrd Mat Min Sub Total Allies 1 | . . 1 . Largest Group 1 | . . 1 1 Highest-Rated Group 31 | . . 31 31 Highest-Rated Ally 31 | . . 31 31 Total Orders . | . . . . Ally Attacks 6 | . . . 6 Total Damage 66 | . . . 66 Kills . | . . . . Allies Corrupted . | . . . . Allies Melted . | . . . . Intel | -11 -10 -10 -10 ------- Run | Yrd Mat Min Sub Active Infowar (turns) 1489 | 5 483 983 18 Seismic 1489 | 5 483 983 18 Robot Analysis Total . | . . . . Derelict Logs Recovered 3 | . . 2 1 Drone Launches . | . . . . Drone Recoveries . | . . . . Exploration | -11 -10 -10 -10 ------------- Run | Yrd Mat Min Sub Turns Passed 3122 | 112 483 983 1544 Spaces Moved 1855 | 47 209 540 1059 Core 10 | 10 . . . Treads 618 | 37 209 372 . Legs . | . . . . Wheels 1227 | . . 168 1059 Hover . | . . . . Flight . | . . . . Fastest Speed 50 | 50 160 90 95 Average Speed 122 | 136 160 140 104 Slowest Speed 240 | 160 160 240 120 Overloaded Moves . | . . . . Propulsion Burnouts . | . . . . Robots Hopped . | . . . . Potential Cave-ins . | . . . . Cave-ins Triggered . | . . . . Exploration Rate (%) 51 | 6 38 95 68 Regions Visited 3 Branch Regions 2 Pre-discovered Areas 2 | . . 1 1 Known Exits Taken . | . . . . Unknown Exits Taken 3 | 1 1 1 . Scrap Searched 4 | . . 1 3 Spaces Dug . | . . . . Terrain Destroyed 30 | 5 3 13 9 Melee . | . . . . Projectile . | . . . . AOE 30 | 5 3 13 9 Terrain Rammed . | . . . . Walls Destroyed . | . . . . Machines Disabled . | . . . . Actions | -11 -10 -10 -10 --------- Run | Yrd Mat Min Sub Total 2388 | 78 346 671 1293 Wait 226 | 5 127 48 46 Move 1852 | 46 208 539 1059 Hop . | . . . . Pick Up 28 | 11 3 11 3 Fast Attach 5 | 1 . . 4 Attach 15 | 6 . 7 2 Detach . | . . . . Swap 17 | 1 1 5 10 Drop 21 | . 1 2 18 Fire 208 | 8 6 59 135 Melee . | . . . . Ram . | . . . . Kick . | . . . . Crush . | . . . . Escape Stasis . | . . . . Rewire . | . . . . Trap . | . . . . Miscellaneous 16 | . . . 16 Route ------- -11/Scrapyard -10/Materials -10/Mines (discovered 3 exits: *Mat x2 / [*Sub]) -10/Subcaves (discovered 3 exits: [*Mat x2] / [*Rec]) History --------- Turn | Location | Event 7 | -11/Scrapyard | Discovered new exit (range 16) 113 | -11/Scrapyard | Entered Materials 300 | -10/Materials | Build established: Mutant 429 | -10/Materials | Discovered new exit (range 13) 596 | -10/Materials | Entered Mines 835 | -10/Mines | Identified exit to Materials 951 | -10/Mines | Received a Rocket Launcher from a helpful Derelict 1269 | -10/Mines | Core integrity fell below 50% 1384 | -10/Mines | Learned location of Zion (-7) 1528 | -10/Mines | Discovered exit to Materials (range 4) 1530 | -10/Mines | Escorted by a lone wolf Derelict 1567 | -10/Mines | Discovered new exit (range 5) 1579 | -10/Mines | Entered Subcaves 1579 | -10/Subcaves | Accompanied by 1 ally 1615 | -10/Subcaves | Met a Zionite searching for "candidates" 1621 | -10/Subcaves | Discovered new exit (range 7) 1787 | -10/Subcaves | A swath of the cavern ceiling suddenly collapsed 2038 | -10/Subcaves | Shifting Twisted Machinery released Sub. Power Source 2143 | -10/Subcaves | Shifting Twisted Machinery released Flamer 2202 | -10/Subcaves | Build established: Subdweller-Mutant 2371 | -10/Subcaves | Discovered new exit (range 14) 2396 | -10/Subcaves | Discovered new exit (range 13) 2527 | -10/Subcaves | Shifting Twisted Machinery released Battle Cannon 3097 | -10/Subcaves | Core integrity fell below 20% 3123 | -10/Subcaves | Destroyed by CL-RTL(R) with Subdweller Laser Last Messages --------------- 02871_ Particle Gun crushed and broken. 02872_ Acquired Sub. Machine Gun. 02873_ Acquired 10 matter. 02894_ 21-J9X(R): "SUBSUUUUUB!" 02964_ LK-6KJ(u) builds Twisted Machinery. 02969_ ND-DAB(R) destroyed. 02970_ LK-6KJ(u) builds Twisted Machinery. 02980_ Acquired 4 matter. 03016_ Wheel destroyed. 03034_ 69-F0O(R) destroyed. 03038_ Scrap Shield Fragment affixed to Scrap Shield (+48). 03039_ Acquired 15 matter. 03086_ Acquired derelict log, extracted data. Data stored: Storage entrances (x1). 03113_ Scrap Shield destroyed. 03116_ Critical hit (Destroy). 03116_ Sub. Machine Gun destroyed. 03121_ BK-KWG(R) Disposable Heat Sink blasted off. 03121_ BK-KWG(R) destroyed. 03122_ Acquired 1 matter. Map ----- +----------------------------------------------------+ | ?????????????????????????????????????????????????? | | ?????????????????????????????????????????????????? | | ?????????????????????????????????????????????????? | | ?????????????????????????????????????????????????? | | ?????????????????????????????????????????????????? | | ?????????????????????????????????????????????????? | | ?????????????????????????????????????????????????? | | ????????????????????????????????????????????????? | | ??????????????????????????????????????????????? | | ???????????????????????????????????????????? | | ????????????????? #?????????????????????? | | ???????????????? #????????????????????? | | ????????????????? #####????????????????? | | ?????????????????? ##??????? ???????# | | ??????????????????? ##????? #???????? | | ???????????????????? ???? #?????##?? | | ????????????????????# ???? ##????# ##?# | | ??????????????????### ??? #????# ### | | ??????????????????# #??# #????# ## | | ???????????? #### ### ??????# ### | | ??????????? #????????# "## | | ??????????? #????????##""""" | | ???????????????# R% #??????????##"""" ! | | ???????????????# ! ##??????????#"" %[ | | ???????????????# ##% ##???????????# # | | ???????????????# ??##@ ##???????????# # | | ???????????????# ????# ######???##### ### # | | ?????????????? ??????# # ## ##?##"### ## ## | | ????????????? ????????# ###"" ## ## # | | ???????????????????????## """" " ## | | ????????????????????????# ##""## " " """ | | ????????????????????????############""" ###""" | | ???????????????????????????????????## ""##?##" # | | ????????????????????????????????????# ##???###### | | ????????????????????????????????????####?????????? | | ?????????????????????????????????????????????????? | | ?????????????????????????????????????????????????? | | ?????????????????????????????????????????????????? | | ?????????????????????????????????????????????????? | | ?????????????????????????????????????????????????? | | ?????????????????????????????????????????????????? | | ?????????????????????????????????????????????????? | | ?????????????????????????????????????????????????? | | ?????????????????????????????????????????????????? | | ?????????????????????????????????????????????????? | | ?????????????????????????????????????????????????? | | ?????????????????????????????????????????????????? | | ?????????????????????????????????????????????????? | | ?????????????????????????????????????????????????? | | | +----------------------------------------------------+ Best States ------------- Heat Dissipation 25 Energy Generation 15 Energy Capacity 200 Matter Stores 300 Matter Capacity 300 Sight Range 16 Terrain Scan Density 10 Armor Coverage 800 Evasion (%) 50 Recoil Reduction 2 Item Schematics ----------------- None Robot Schematics ------------------ None Fabricated ------------ Nothing Repaired ---------- Nothing Studied --------- None Alien Tech Used ----------------- None Achievements -------------- None Challenges ------------ None Game ------ Seed SubdwellerMissileInterrupter Manual? 0 Play Time 00:14:09 Cumulative 497.0 hours Start 2025.11.13 @ 08:57:31 End 2025.11.14 @ 08:24:18 Sessions 6 Manual Loads 0 Difficulty Rogue Special Mode None Game No. 670 Rogue 670 Adventurer 0 Explorer 0 Win Type - Total 16 Types 8/0/2/2/1/0/2/1/0/0 Lore% 91 Gallery% 85 Achievement% 66 Wizard Run 0 Options --------- Layout 0 ASCII 0 Keyboard 0 Movement Mouse Keybinds 0 Fullscreen 1 Font 24/Terminus Map View 76x50 Zoom Use 0% Tactical HUD 1 Map Filters NONE Filters NONE Steam 1 RUN: 51ef9883-dd17-4f1b-a0b4-458fa4308441